[Event "Early-Titled-Tuesday-Blitz-December-26-2023"]
[Site "Chess.com"]
[Date "2023.12.26"]
[Round "10"]
[White "Sofia_Blokhin"]
[Black "C_K_G"]
[Result "0-1"]
[WhiteElo "2304"]
[BlackElo "2074"]
[TimeControl "180+1"]
[EndTime "9:56:17 PST"]
[Termination "C_K_G won by resignation"]

1. d4 {[%clk 0:03:00.9]} 1... d5 {[%clk 0:02:58.4]} 2. c4 {[%clk 0:03:00.1]}
2... e6 {[%clk 0:02:57.9]} 3. Nc3 {[%clk 0:02:59.3]} 3... Nf6 {[%clk 0:02:57.4]}
4. Nf3 {[%clk 0:02:58.6]} 4... c6 {[%clk 0:02:56.8]} 5. e3 {[%clk 0:02:58.6]}
5... Nbd7 {[%clk 0:02:56.8]} 6. Bd3 {[%clk 0:02:58.1]} 6... Bd6 {[%clk
0:02:56.1]} 7. O-O {[%clk 0:02:53.9]} 7... O-O {[%clk 0:02:55.4]} 8. e4 {[%clk
0:02:51.2]} 8... dxe4 {[%clk 0:02:55.1]} 9. Nxe4 {[%clk 0:02:50.8]} 9... Nxe4
{[%clk 0:02:53.6]} 10. Bxe4 {[%clk 0:02:51]} 10... h6 {[%clk 0:02:50.2]} 11. Bc2
{[%clk 0:02:43.3]} 11... e5 {[%clk 0:02:39]} 12. Qd3 {[%clk 0:02:31.8]} 12... f5
{[%clk 0:02:17.3]} 13. dxe5 {[%clk 0:02:20.7]} 13... Nxe5 {[%clk 0:02:15.4]} 14.
Nxe5 {[%clk 0:02:11.2]} 14... Bxe5 {[%clk 0:02:13.7]} 15. Qe2 {[%clk 0:02:11.2]}
15... Qf6 {[%clk 0:02:07.4]} 16. Be3 {[%clk 0:01:43.7]} 16... Be6 {[%clk
0:02:01.2]} 17. Bc5 {[%clk 0:01:35.7]} 17... Rfe8 {[%clk 0:01:58.7]} 18. Bb3
{[%clk 0:01:04.9]} 18... Bf7 {[%clk 0:01:40.9]} 19. Qf3 {[%clk 0:00:56.5]} 19...
Bxb2 {[%clk 0:01:27.4]} 20. Rad1 {[%clk 0:00:55.5]} 20... Rad8 {[%clk
0:01:24.7]} 21. Bxa7 {[%clk 0:00:53.4]} 21... Qg5 {[%clk 0:01:17]} 22. Bb6
{[%clk 0:00:45.6]} 22... Rxd1 {[%clk 0:01:14.8]} 23. Rxd1 {[%clk 0:00:44]} 23...
Bh5 {[%clk 0:01:13.9]} 24. c5+ {[%clk 0:00:27.9]} 24... Kh8 {[%clk 0:01:13.2]}
25. Qd3 {[%clk 0:00:21.8]} 25... Bxd1 {[%clk 0:01:07.8]} 26. Qxd1 {[%clk
0:00:21.9]} 26... Qc1 {[%clk 0:01:02.1]} 27. Qxc1 {[%clk 0:00:21]} 27... Bxc1
{[%clk 0:01:03]} 28. Kf1 {[%clk 0:00:20.6]} 28... Bd2 {[%clk 0:01:01.8]} 29. f3
{[%clk 0:00:20.7]} 29... Re1+ {[%clk 0:00:59.5]} 30. Kf2 {[%clk 0:00:21]} 30...
f4 {[%clk 0:00:58.5]} 31. g3 {[%clk 0:00:14.8]} 31... g5 {[%clk 0:00:57.5]} 32.
Bc7 {[%clk 0:00:13.3]} 32... Re7 {[%clk 0:00:55.4]} 33. Bd6 {[%clk 0:00:12.2]}
33... Re8 {[%clk 0:00:45.3]} 34. h4 {[%clk 0:00:09.1]} 34... Kg7 {[%clk
0:00:44]} 35. hxg5 {[%clk 0:00:08.7]} 35... hxg5 {[%clk 0:00:44.9]} 36. gxf4
{[%clk 0:00:08.9]} 36... Bxf4 {[%clk 0:00:44.5]} 37. Bc4 {[%clk 0:00:01.6]}
37... Bxd6 {[%clk 0:00:43.1]} 38. cxd6 {[%clk 0:00:02.5]} 38... Rd8 {[%clk
0:00:43.3]} 39. Be6 {[%clk 0:00:01.8]} 39... Rxd6 {[%clk 0:00:43.1]} 40. Bc8
{[%clk 0:00:02.7]} 40... b6 {[%clk 0:00:40.8]} 41. Bb7 {[%clk 0:00:03]} 41... c5
{[%clk 0:00:39.4]} 42. Ba6 {[%clk 0:00:03.3]} 42... Rd2+ {[%clk 0:00:39.3]} 43.
Ke3 {[%clk 0:00:03.2]} 43... Rxa2 {[%clk 0:00:39.9]} 44. Bc4 {[%clk 0:00:02.9]}
44... Ra4 {[%clk 0:00:38.5]} 45. Kd3 {[%clk 0:00:02.7]} 45... Kf6 {[%clk
0:00:37.7]} 46. Bb5 {[%clk 0:00:02.6]} 46... Rb4 {[%clk 0:00:37.3]} 47. Bc6
{[%clk 0:00:03.1]} 47... Ke5 {[%clk 0:00:37.4]} 48. Ke3 {[%clk 0:00:03.3]} 48...
Rb3+ {[%clk 0:00:37]} 49. Kd2 {[%clk 0:00:03.2]} 49... Kd4 {[%clk 0:00:37.3]}
50. Ba4 {[%clk 0:00:02.9]} 50... Rb2+ {[%clk 0:00:36.7]} 51. Kc1 {[%clk
0:00:03.1]} 51... Rf2 {[%clk 0:00:36.6]} 0-1

[Event "Early-Titled-Tuesday-Blitz-December-26-2023"]
[Site "Chess.com"]
[Date "2023.12.26"]
[Round "10"]
[White "Romn69"]
[Black "Grammnik"]
[Result "0-1"]
[WhiteElo "2335"]
[BlackElo "2183"]
[TimeControl "180+1"]
[EndTime "9:56:23 PST"]
[Termination "Grammnik won on time"]

1. d4 {[%clk 0:03:00.9]} 1... d5 {[%clk 0:02:59.2]} 2. Nf3 {[%clk 0:03:00.6]}
2... Nf6 {[%clk 0:02:58.8]} 3. c4 {[%clk 0:03:01.1]} 3... c6 {[%clk 0:02:59.1]}
4. Nc3 {[%clk 0:03:01.3]} 4... dxc4 {[%clk 0:02:58.7]} 5. a4 {[%clk 0:03:00.4]}
5... Bf5 {[%clk 0:02:57.9]} 6. Ne5 {[%clk 0:03:00.3]} 6... Nbd7 {[%clk 0:02:56]}
7. Nxc4 {[%clk 0:03:00]} 7... Qc7 {[%clk 0:02:56.4]} 8. Qd2 {[%clk 0:02:59.5]}
8... e6 {[%clk 0:02:52.4]} 9. Qf4 {[%clk 0:02:58]} 9... Qxf4 {[%clk 0:02:41.9]}
10. Bxf4 {[%clk 0:02:58.9]} 10... Nd5 {[%clk 0:02:40.3]} 11. Nd6+ {[%clk
0:02:44.8]} 11... Bxd6 {[%clk 0:02:39.5]} 12. Bxd6 {[%clk 0:02:45.1]} 12...
O-O-O {[%clk 0:02:36.1]} 13. e3 {[%clk 0:02:28.6]} 13... N7f6 {[%clk 0:02:32.6]}
14. Ba3 {[%clk 0:02:22.5]} 14... Rhe8 {[%clk 0:02:29.5]} 15. Be2 {[%clk
0:02:14.8]} 15... e5 {[%clk 0:02:29.4]} 16. Nxd5 {[%clk 0:02:09.4]} 16... Nxd5
{[%clk 0:02:27.8]} 17. dxe5 {[%clk 0:02:07.9]} 17... Rxe5 {[%clk 0:02:27.1]} 18.
O-O {[%clk 0:02:07]} 18... Rde8 {[%clk 0:02:22.9]} 19. Rac1 {[%clk 0:02:03.4]}
19... Be4 {[%clk 0:02:19.7]} 20. f3 {[%clk 0:01:54.3]} 20... Bg6 {[%clk
0:02:18.8]} 21. e4 {[%clk 0:01:53.8]} 21... Nf4 {[%clk 0:02:18.8]} 22. Bc4
{[%clk 0:01:53.5]} 22... Rd8 {[%clk 0:02:16.2]} 23. Rfd1 {[%clk 0:01:51.2]}
23... Ree8 {[%clk 0:02:13.4]} 24. Kf2 {[%clk 0:01:43.9]} 24... Ne6 {[%clk
0:02:12.3]} 25. Ke3 {[%clk 0:01:35]} 25... Kc7 {[%clk 0:02:09]} 26. b4 {[%clk
0:01:26.4]} 26... a6 {[%clk 0:02:07.3]} 27. Bb2 {[%clk 0:01:23.4]} 27... f6
{[%clk 0:02:05.4]} 28. g3 {[%clk 0:01:21.3]} 28... Rxd1 {[%clk 0:01:57.1]} 29.
Rxd1 {[%clk 0:01:20.6]} 29... Ng5 {[%clk 0:01:57.1]} 30. h4 {[%clk 0:01:08]}
30... Nxe4 {[%clk 0:01:54.2]} 31. fxe4 {[%clk 0:00:57.7]} 31... Rxe4+ {[%clk
0:01:53.3]} 32. Kd3 {[%clk 0:00:53.1]} 32... Rg4+ {[%clk 0:01:45.1]} 33. Kc3
{[%clk 0:00:39]} 33... Rxg3+ {[%clk 0:01:43.2]} 34. Bd3 {[%clk 0:00:23.6]} 34...
Bh5 {[%clk 0:01:37.2]} 35. Re1 {[%clk 0:00:16.4]} 35... Bg6 {[%clk 0:01:32.5]}
36. Rd1 {[%clk 0:00:15.7]} 36... Rh3 {[%clk 0:01:32.3]} 37. Kc2 {[%clk
0:00:13.6]} 37... Rxh4 {[%clk 0:01:17.9]} 38. Bxg6 {[%clk 0:00:12.3]} 38... hxg6
{[%clk 0:01:17.8]} 39. Bc3 {[%clk 0:00:11.7]} 39... g5 {[%clk 0:01:14.6]} 40.
Re1 {[%clk 0:00:11]} 40... Kd7 {[%clk 0:01:14]} 41. Rd1+ {[%clk 0:00:11.1]}
41... Ke6 {[%clk 0:01:14]} 42. Rd8 {[%clk 0:00:09.8]} 42... b5 {[%clk
0:01:12.9]} 43. a5 {[%clk 0:00:08.6]} 43... Rf4 {[%clk 0:01:08.9]} 44. Ra8
{[%clk 0:00:07.7]} 44... Rc4 {[%clk 0:01:07]} 45. Rxa6 {[%clk 0:00:06.7]} 45...
g4 {[%clk 0:01:07.3]} 46. Ra8 {[%clk 0:00:06.6]} 46... g3 {[%clk 0:01:07.1]} 47.
Re8+ {[%clk 0:00:06.5]} 47... Kf5 {[%clk 0:01:05.4]} 48. Re2 {[%clk 0:00:06.3]}
48... c5 {[%clk 0:01:05.6]} 49. Kb3 {[%clk 0:00:05.3]} 49... cxb4 {[%clk
0:01:04.7]} 50. Bxb4 {[%clk 0:00:06.2]} 50... Kg4 {[%clk 0:01:02.2]} 51. a6
{[%clk 0:00:06.1]} 51... Rc6 {[%clk 0:01:01.3]} 52. Ra2 {[%clk 0:00:05.6]} 52...
Rc8 {[%clk 0:01:01]} 53. Bc5 {[%clk 0:00:04.9]} 53... f5 {[%clk 0:01:00.1]} 54.
Kb4 {[%clk 0:00:05]} 54... f4 {[%clk 0:01:00.1]} 55. a7 {[%clk 0:00:04.3]} 55...
Ra8 {[%clk 0:00:58.8]} 56. Kxb5 {[%clk 0:00:03.6]} 56... f3 {[%clk 0:00:59]} 57.
Kb6 {[%clk 0:00:03.3]} 57... g5 {[%clk 0:00:56.9]} 58. Kb7 {[%clk 0:00:03.2]}
58... Rxa7+ {[%clk 0:00:57.1]} 59. Kxa7 {[%clk 0:00:04.1]} 59... f2 {[%clk
0:00:57.2]} 60. Bxf2 {[%clk 0:00:03.2]} 60... gxf2 {[%clk 0:00:57.4]} 61. Rxf2
{[%clk 0:00:03.4]} 61... Kg3 {[%clk 0:00:57.8]} 62. Rf8 {[%clk 0:00:03.3]} 62...
g4 {[%clk 0:00:58]} 0-1

[Event "Early-Titled-Tuesday-Blitz-December-26-2023"]
[Site "Chess.com"]
[Date "2023.12.26"]
[Round "10"]
[White "JohnWhite1952"]
[Black "GMT4114"]
[Result "0-1"]
[WhiteElo "1985"]
[BlackElo "2015"]
[TimeControl "180+1"]
[EndTime "9:56:25 PST"]
[Termination "GMT4114 won on time"]

1. e4 {[%clk 0:03:00.9]} 1... e6 {[%clk 0:03:00.2]} 2. d3 {[%clk 0:02:58.8]}
2... c5 {[%clk 0:02:59.4]} 3. Nf3 {[%clk 0:02:56.3]} 3... Nc6 {[%clk 0:03:00.3]}
4. g3 {[%clk 0:02:53.6]} 4... g6 {[%clk 0:02:59.4]} 5. Bg2 {[%clk 0:02:52.2]}
5... Bg7 {[%clk 0:02:59.3]} 6. O-O {[%clk 0:02:51.9]} 6... Nge7 {[%clk
0:02:59.4]} 7. Re1 {[%clk 0:02:50.3]} 7... d6 {[%clk 0:02:55.5]} 8. Nbd2 {[%clk
0:02:48.5]} 8... O-O {[%clk 0:02:54.3]} 9. Nf1 {[%clk 0:02:44.9]} 9... e5 {[%clk
0:02:53.6]} 10. Bg5 {[%clk 0:02:38.1]} 10... h6 {[%clk 0:02:53.2]} 11. Be3
{[%clk 0:02:36.5]} 11... Be6 {[%clk 0:02:51.7]} 12. Qd2 {[%clk 0:02:35.2]} 12...
Kh7 {[%clk 0:02:50.5]} 13. h4 {[%clk 0:02:29]} 13... Qd7 {[%clk 0:02:50]} 14.
N1h2 {[%clk 0:02:19.8]} 14... f5 {[%clk 0:02:30.4]} 15. exf5 {[%clk 0:02:01.1]}
15... gxf5 {[%clk 0:02:31.3]} 16. Qc1 {[%clk 0:01:43.2]} 16... Rf7 {[%clk
0:02:31.3]} 17. c3 {[%clk 0:01:38.4]} 17... Raf8 {[%clk 0:02:30.2]} 18. Rd1
{[%clk 0:01:26.9]} 18... f4 {[%clk 0:02:24.8]} 19. gxf4 {[%clk 0:01:23.5]} 19...
exf4 {[%clk 0:02:25.7]} 20. Bd2 {[%clk 0:01:20.5]} 20... Bh3 {[%clk 0:02:22.5]}
21. Qc2 {[%clk 0:01:10.1]} 21... Qf5 {[%clk 0:02:03.3]} 22. Bxh3 {[%clk
0:01:02.3]} 22... Qxh3 {[%clk 0:02:04.2]} 23. Kh1 {[%clk 0:01:00.8]} 23... Nf5
{[%clk 0:02:00.8]} 24. d4 {[%clk 0:00:59.7]} 24... Kh8 {[%clk 0:01:59.2]} 25.
dxc5 {[%clk 0:00:55.5]} 25... dxc5 {[%clk 0:01:53.8]} 26. Bxf4 {[%clk
0:00:52.3]} 26... Nxh4 {[%clk 0:01:53.4]} 27. Nxh4 {[%clk 0:00:48]} 27... Rxf4
{[%clk 0:01:41.8]} 28. Ng6+ {[%clk 0:00:46.8]} 28... Kg8 {[%clk 0:01:37.9]} 29.
Nxf4 {[%clk 0:00:44.5]} 29... Rxf4 {[%clk 0:01:35.9]} 30. Rd2 {[%clk 0:00:37.1]}
30... Ne5 {[%clk 0:01:19.4]} 31. Kg1 {[%clk 0:00:17.7]} 31... Rf6 {[%clk
0:01:04.5]} 32. Rd8+ {[%clk 0:00:15.2]} 32... Bf8 {[%clk 0:01:04.6]} 33. Qb3+
{[%clk 0:00:12.1]} 33... Kh8 {[%clk 0:00:45.1]} 34. Qd5 {[%clk 0:00:10.4]} 34...
Rg6+ {[%clk 0:00:20.6]} 35. Kh1 {[%clk 0:00:09.8]} 35... Kg7 {[%clk 0:00:13.2]}
36. Qxe5+ {[%clk 0:00:08.2]} 36... Kh7 {[%clk 0:00:13.6]} 37. Qc7+ {[%clk
0:00:06.2]} 37... Bg7 {[%clk 0:00:12.6]} 38. Qxb7 {[%clk 0:00:03.5]} 38... Qh4
{[%clk 0:00:11]} 39. Rd7 {[%clk 0:00:01.2]} 39... Qxf2 {[%clk 0:00:08.8]} 0-1

[Event "Early-Titled-Tuesday-Blitz-December-26-2023"]
[Site "Chess.com"]
[Date "2023.12.26"]
[Round "10"]
[White "johnmez"]
[Black "GiorgianBarbosa"]
[Result "0-1"]
[WhiteElo "2319"]
[BlackElo "2479"]
[TimeControl "180+1"]
[EndTime "9:56:28 PST"]
[Termination "GiorgianBarbosa won on time"]

1. d4 {[%clk 0:03:00.9]} 1... Nf6 {[%clk 0:02:59.2]} 2. c4 {[%clk 0:02:54.5]}
2... g6 {[%clk 0:03:00.1]} 3. Nc3 {[%clk 0:02:53]} 3... Bg7 {[%clk 0:03:01]} 4.
e4 {[%clk 0:02:52.4]} 4... O-O {[%clk 0:03:01.9]} 5. Nge2 {[%clk 0:02:51.1]}
5... c6 {[%clk 0:03:01.7]} 6. Ng3 {[%clk 0:02:49]} 6... d6 {[%clk 0:02:58.2]} 7.
Be2 {[%clk 0:02:48.3]} 7... e5 {[%clk 0:02:58]} 8. d5 {[%clk 0:02:48.4]} 8... a5
{[%clk 0:02:57.3]} 9. h4 {[%clk 0:02:47]} 9... h5 {[%clk 0:02:56.2]} 10. Bg5
{[%clk 0:02:47.3]} 10... Na6 {[%clk 0:02:54.9]} 11. Bxh5 {[%clk 0:02:44.7]}
11... gxh5 {[%clk 0:02:50]} 12. Nxh5 {[%clk 0:02:45.1]} 12... Nc7 {[%clk
0:02:38.9]} 13. Qf3 {[%clk 0:02:43.3]} 13... Nce8 {[%clk 0:02:35.8]} 14. Nd1
{[%clk 0:02:40.2]} 14... Bg4 {[%clk 0:02:14.8]} 15. Nxf6+ {[%clk 0:02:28]} 15...
Nxf6 {[%clk 0:02:15.7]} 16. Qg3 {[%clk 0:02:26.9]} 16... Bf3 {[%clk 0:02:16.6]}
17. gxf3 {[%clk 0:02:21.4]} 17... Kh7 {[%clk 0:02:07.2]} 18. Ne3 {[%clk
0:02:10.3]} 18... Rg8 {[%clk 0:01:58.5]} 19. Qh3 {[%clk 0:02:07.2]} 19... Qc8
{[%clk 0:01:55.3]} 20. Qf5+ {[%clk 0:02:02.1]} 20... Qxf5 {[%clk 0:01:54.8]} 21.
Nxf5 {[%clk 0:02:03]} 21... cxd5 {[%clk 0:01:43.2]} 22. cxd5 {[%clk 0:02:00.4]}
22... Rgc8 {[%clk 0:01:33.6]} 23. Kd2 {[%clk 0:01:52.7]} 23... Ne8 {[%clk
0:01:31.5]} 24. Rac1 {[%clk 0:01:50.3]} 24... Bf6 {[%clk 0:01:15.5]} 25. Bxf6
{[%clk 0:01:42.9]} 25... Nxf6 {[%clk 0:01:14.7]} 26. Nxd6 {[%clk 0:01:41.9]}
26... Rf8 {[%clk 0:01:11.8]} 27. Nxb7 {[%clk 0:01:31.5]} 27... Rfb8 {[%clk
0:01:06.4]} 28. Rc7 {[%clk 0:01:29.4]} 28... Ra7 {[%clk 0:01:03]} 29. Rc6 {[%clk
0:00:49.4]} 29... Raxb7 {[%clk 0:00:55.8]} 30. Rxf6 {[%clk 0:00:48.8]} 30...
Rxb2+ {[%clk 0:00:56.5]} 31. Kd3 {[%clk 0:00:44]} 31... Rxa2 {[%clk 0:00:56.3]}
32. Rxf7+ {[%clk 0:00:31.3]} 32... Kg6 {[%clk 0:00:55.5]} 33. Rc7 {[%clk
0:00:30.7]} 33... Rxf2 {[%clk 0:00:48.1]} 34. Rg1+ {[%clk 0:00:27.9]} 34... Kh6
{[%clk 0:00:36.5]} 35. Rg3 {[%clk 0:00:24.5]} 35... a4 {[%clk 0:00:27.3]} 36. d6
{[%clk 0:00:17.4]} 36... a3 {[%clk 0:00:24.7]} 37. Ra7 {[%clk 0:00:16.1]} 37...
a2 {[%clk 0:00:24.2]} 38. d7 {[%clk 0:00:13.2]} 38... Rd8 {[%clk 0:00:23]} 39.
Kc4 {[%clk 0:00:10.8]} 39... Rxd7 {[%clk 0:00:20.9]} 40. Ra6+ {[%clk 0:00:08.4]}
40... Kh5 {[%clk 0:00:19.8]} 41. Rg5+ {[%clk 0:00:02.3]} 41... Kxh4 {[%clk
0:00:19.8]} 42. Rxe5 {[%clk 0:00:02.2]} 42... Rd1 {[%clk 0:00:09]} 0-1

[Event "Early-Titled-Tuesday-Blitz-December-26-2023"]
[Site "Chess.com"]
[Date "2023.12.26"]
[Round "10"]
[White "WindWhistler11"]
[Black "PabloZarnicki"]
[Result "0-1"]
[WhiteElo "2468"]
[BlackElo "2652"]
[TimeControl "180+1"]
[EndTime "9:56:31 PST"]
[Termination "PabloZarnicki won by resignation"]

1. Nf3 {[%clk 0:02:54.9]} 1... Nf6 {[%clk 0:02:59.9]} 2. c4 {[%clk 0:02:54.8]}
2... g6 {[%clk 0:02:59.8]} 3. g3 {[%clk 0:02:52.5]} 3... Bg7 {[%clk 0:03:00.7]}
4. Bg2 {[%clk 0:02:52.8]} 4... O-O {[%clk 0:03:01.6]} 5. O-O {[%clk 0:02:53.5]}
5... c6 {[%clk 0:03:02]} 6. Nc3 {[%clk 0:02:54.2]} 6... d6 {[%clk 0:03:02.3]} 7.
d3 {[%clk 0:02:54.4]} 7... Bf5 {[%clk 0:03:02.9]} 8. Nd4 {[%clk 0:02:53.2]} 8...
Bd7 {[%clk 0:03:00.2]} 9. Rb1 {[%clk 0:02:51.6]} 9... Qc8 {[%clk 0:02:57.6]} 10.
Re1 {[%clk 0:02:51.4]} 10... Bh3 {[%clk 0:02:57.3]} 11. Bh1 {[%clk 0:02:50]}
11... Qg4 {[%clk 0:02:57.4]} 12. e3 {[%clk 0:02:48.9]} 12... e5 {[%clk
0:02:52.6]} 13. Nb3 {[%clk 0:02:24.1]} 13... Nbd7 {[%clk 0:02:43.7]} 14. Na5
{[%clk 0:02:12.7]} 14... Rab8 {[%clk 0:02:38.6]} 15. b4 {[%clk 0:02:05.1]} 15...
Qxd1 {[%clk 0:02:17.5]} 16. Rxd1 {[%clk 0:02:03.8]} 16... Bg4 {[%clk 0:02:18.1]}
17. Re1 {[%clk 0:01:57.8]} 17... Bf5 {[%clk 0:02:10.2]} 18. Rd1 {[%clk
0:01:34.4]} 18... Nb6 {[%clk 0:01:56.4]} 19. b5 {[%clk 0:01:31.1]} 19... Bg4
{[%clk 0:01:33.8]} 20. Rd2 {[%clk 0:01:20.2]} 20... c5 {[%clk 0:01:18.1]} 21.
Nxb7 {[%clk 0:01:13.6]} 21... d5 {[%clk 0:01:11.7]} 22. Na5 {[%clk 0:00:44]}
22... d4 {[%clk 0:01:02.2]} 23. Ne4 {[%clk 0:00:36]} 23... Nxe4 {[%clk 0:01:02]}
24. Bxe4 {[%clk 0:00:34.8]} 24... f5 {[%clk 0:01:02.3]} 25. Bd5+ {[%clk
0:00:30.4]} 25... Nxd5 {[%clk 0:01:00.6]} 26. cxd5 {[%clk 0:00:31.3]} 26... Bh6
{[%clk 0:00:50.8]} 27. Rc2 {[%clk 0:00:28.9]} 27... e4 {[%clk 0:00:45]} 28. dxe4
{[%clk 0:00:10.8]} 28... fxe4 {[%clk 0:00:29]} 29. Rxc5 {[%clk 0:00:11.3]} 29...
d3 {[%clk 0:00:22.7]} 30. Nc6 {[%clk 0:00:07.8]} 30... Rb7 {[%clk 0:00:20.4]}
31. Bd2 {[%clk 0:00:06.2]} 31... Be2 {[%clk 0:00:17]} 32. d6 {[%clk 0:00:02.3]}
32... Rbf7 {[%clk 0:00:16.7]} 33. Ne7+ {[%clk 0:00:02.4]} 33... Kh8 {[%clk
0:00:17]} 34. Bc3+ {[%clk 0:00:02.5]} 34... Bg7 {[%clk 0:00:17.5]} 35. Bxg7+
{[%clk 0:00:02.8]} 35... Kxg7 {[%clk 0:00:18.4]} 36. Rc8 {[%clk 0:00:01.6]}
36... Rxf2 {[%clk 0:00:13.7]} 37. Rxf8 {[%clk 0:00:02.2]} 37... Rxf8 {[%clk
0:00:13.6]} 38. Nc6 {[%clk 0:00:01.8]} 38... Rf7 {[%clk 0:00:06.6]} 39. Ne5
{[%clk 0:00:01.8]} 39... d2 {[%clk 0:00:07.1]} 40. Nxf7 {[%clk 0:00:01.7]} 40...
Kxf7 {[%clk 0:00:06.7]} 41. b6 {[%clk 0:00:01.3]} 41... axb6 {[%clk 0:00:06.4]}
42. Kf2 {[%clk 0:00:01.5]} 42... d1=Q {[%clk 0:00:06.4]} 43. Rxd1 {[%clk
0:00:02.2]} 43... Bxd1 {[%clk 0:00:07]} 44. Ke1 {[%clk 0:00:02.2]} 44... Ba4
{[%clk 0:00:07.2]} 45. Kd2 {[%clk 0:00:03]} 45... Bd7 {[%clk 0:00:08]} 46. Kc3
{[%clk 0:00:03.7]} 46... Ke6 {[%clk 0:00:08.5]} 47. Kd4 {[%clk 0:00:04.5]} 47...
Bc6 {[%clk 0:00:09.1]} 48. Kc4 {[%clk 0:00:03.3]} 48... Kxd6 {[%clk 0:00:09.4]}
49. Kd4 {[%clk 0:00:04.2]} 49... Bd5 {[%clk 0:00:09.9]} 0-1

[Event "Early-Titled-Tuesday-Blitz-December-26-2023"]
[Site "Chess.com"]
[Date "2023.12.26"]
[Round "10"]
[White "Pumpkin_in_moonlight"]
[Black "Yushko_Olga"]
[Result "0-1"]
[WhiteElo "2308"]
[BlackElo "2197"]
[TimeControl "180+1"]
[EndTime "9:56:32 PST"]
[Termination "Yushko_Olga won on time"]

1. e4 {[%clk 0:03:00.9]} 1... e6 {[%clk 0:02:59.9]} 2. d4 {[%clk 0:02:57.8]}
2... d5 {[%clk 0:03:00.6]} 3. Nc3 {[%clk 0:02:57.7]} 3... Nf6 {[%clk 0:03:00.9]}
4. e5 {[%clk 0:02:54]} 4... Nfd7 {[%clk 0:03:00.4]} 5. f4 {[%clk 0:02:53.9]}
5... c5 {[%clk 0:03:01.2]} 6. Nf3 {[%clk 0:02:53.3]} 6... Nc6 {[%clk 0:03:01.8]}
7. Be3 {[%clk 0:02:53.3]} 7... Qb6 {[%clk 0:03:01.8]} 8. Be2 {[%clk 0:01:46.1]}
8... cxd4 {[%clk 0:02:42.8]} 9. Nxd4 {[%clk 0:01:34]} 9... Nxd4 {[%clk
0:02:42.8]} 10. Bxd4 {[%clk 0:01:29.8]} 10... Bc5 {[%clk 0:02:43.5]} 11. Na4
{[%clk 0:01:17.8]} 11... Qa5+ {[%clk 0:02:41.3]} 12. c3 {[%clk 0:01:15.8]} 12...
Bxd4 {[%clk 0:02:41.6]} 13. Qxd4 {[%clk 0:01:12.9]} 13... O-O {[%clk 0:02:40.5]}
14. O-O {[%clk 0:00:56.1]} 14... a6 {[%clk 0:02:36.2]} 15. b3 {[%clk 0:00:37.3]}
15... Qc7 {[%clk 0:02:30]} 16. Rac1 {[%clk 0:00:33.6]} 16... b5 {[%clk
0:02:29.8]} 17. Nb2 {[%clk 0:00:32.9]} 17... Bb7 {[%clk 0:02:27.6]} 18. Kh1
{[%clk 0:00:28.7]} 18... Rfc8 {[%clk 0:02:26]} 19. Bf3 {[%clk 0:00:27.9]} 19...
Qb6 {[%clk 0:02:21.9]} 20. Qxb6 {[%clk 0:00:26.6]} 20... Nxb6 {[%clk 0:02:22.1]}
21. c4 {[%clk 0:00:26.6]} 21... bxc4 {[%clk 0:01:59.9]} 22. bxc4 {[%clk
0:00:26.6]} 22... h6 {[%clk 0:01:43.8]} 23. c5 {[%clk 0:00:23.5]} 23... Nd7
{[%clk 0:01:42.6]} 24. Nd3 {[%clk 0:00:20.9]} 24... Rc6 {[%clk 0:01:39.4]} 25.
Rc3 {[%clk 0:00:18.6]} 25... Rac8 {[%clk 0:01:38.6]} 26. Rfc1 {[%clk 0:00:18.6]}
26... a5 {[%clk 0:01:35.7]} 27. a4 {[%clk 0:00:17.3]} 27... Nb6 {[%clk
0:01:34.7]} 28. Rb3 {[%clk 0:00:11.2]} 28... Ba6 {[%clk 0:01:29.7]} 29. Rxb6
{[%clk 0:00:07.4]} 29... Bxd3 {[%clk 0:01:29.5]} 30. Rxc6 {[%clk 0:00:06.2]}
30... Rxc6 {[%clk 0:01:29.3]} 31. Kg1 {[%clk 0:00:05.9]} 31... Bc4 {[%clk
0:01:28.9]} 32. Kf2 {[%clk 0:00:04.8]} 32... Rxc5 {[%clk 0:01:28.8]} 33. Ke3
{[%clk 0:00:05.2]} 33... Rc8 {[%clk 0:01:25.9]} 34. Kd4 {[%clk 0:00:05.4]} 34...
Rb8 {[%clk 0:01:25.2]} 35. Rc3 {[%clk 0:00:04.5]} 35... Rb4 {[%clk 0:01:24.8]}
36. Kc5 {[%clk 0:00:04]} 36... Rxa4 {[%clk 0:01:23.9]} 37. f5 {[%clk 0:00:03.6]}
37... Bf1 {[%clk 0:01:11.7]} 38. fxe6 {[%clk 0:00:03.2]} 38... fxe6 {[%clk
0:01:12.6]} 39. h3 {[%clk 0:00:03.6]} 39... Rc4+ {[%clk 0:01:11.3]} 40. Rxc4
{[%clk 0:00:03.7]} 40... Bxc4 {[%clk 0:01:11.3]} 41. Bg4 {[%clk 0:00:04.1]}
41... Kf7 {[%clk 0:01:11]} 42. Bh5+ {[%clk 0:00:04.6]} 42... g6 {[%clk
0:01:10.8]} 43. Bd1 {[%clk 0:00:04.6]} 43... Bf1 {[%clk 0:01:08.8]} 44. Bf3
{[%clk 0:00:03.7]} 44... Ke7 {[%clk 0:01:03.8]} 45. h4 {[%clk 0:00:03.9]} 45...
g5 {[%clk 0:01:03.2]} 46. hxg5 {[%clk 0:00:03.7]} 46... hxg5 {[%clk 0:01:04.1]}
47. g3 {[%clk 0:00:04]} 47... Kd7 {[%clk 0:00:59.8]} 48. Bg4 {[%clk 0:00:03.8]}
48... Bd3 {[%clk 0:00:59.8]} 49. Bd1 {[%clk 0:00:03.4]} 49... Kc7 {[%clk
0:00:58]} 50. Ba4 {[%clk 0:00:03.4]} 50... Be2 {[%clk 0:00:57]} 51. Be8 {[%clk
0:00:03.3]} 51... Kb7 {[%clk 0:00:47.9]} 52. Ba4 {[%clk 0:00:03.1]} 52... Ka6
{[%clk 0:00:46.6]} 53. Kd6 {[%clk 0:00:03.2]} 53... Bb5 {[%clk 0:00:46.6]} 54.
Bc2 {[%clk 0:00:01.9]} 54... a4 {[%clk 0:00:45.6]} 55. Kxe6 {[%clk 0:00:02.2]}
55... a3 {[%clk 0:00:46]} 56. Bb1 {[%clk 0:00:02.2]} 56... Bd3 {[%clk
0:00:44.8]} 57. Ba2 {[%clk 0:00:01.6]} 57... Bc4 {[%clk 0:00:44.7]} 58. Bb1
{[%clk 0:00:01.3]} 58... d4+ {[%clk 0:00:44.9]} 0-1